bitfinex/quotes_ETHUSD_20220202
["timestamp","ask_amount","ask_price","bid_price","bid_amount"]
[1643782715627,0.3,2776.5,2776.0,2.0510991]
[1643782715827,0.4799,2776.7,2776.1,2.1105991]
[1643782716027,0.16915007,2776.6,2776.2,1.32828301]
[1643782716829,0.37790217,2776.5,2776.2,1.32828301]
[1643782717029,1.38047,2776.7,2776.2,1.32828301]
[1643782717030,0.16915007,2776.4,2776.2,1.32828301]
[1643782717264,0.16915007,2776.3,2776.2,1.32828301]
[1643782717666,0.16915007,2776.6,2776.2,3.44838845]
[1643782717965,0.16915007,2776.5,2776.3,1.32828301]
[1643782718169,0.16915007,2776.5,2776.4,1.32828301]
[1643782718766,0.16915007,2776.5,2776.1,1.32828301]
[1643782719175,0.16915007,2776.5,2776.3,0.9005532]
[1643782719372,0.16915007,2776.5,2776.4,1.32828301]
[1643782719970,0.16915007,2776.5,2776.4,1.32747065]
[1643782721223,1.20057,2776.7,2776.4,1.32747065]
[1643782722424,0.1799,2776.6,2776.4,1.32747065]
[1643782723829,1.38047,2776.7,2776.4,1.32747065]
[1643782725081,1.38047,2776.7,2776.3,0.9005532]
[1643782730426,1.20057,2776.7,2776.4,2.1040847]
[1643782730628,0.3,2776.7,2776.4,0.9004734]
[1643782733883,0.67688459,2776.8,2776.4,0.9004734]
[1643782736418,1.57741459,2776.8,2776.4,0.9004734]
[1643782737017,1.57741459,2776.8,2776.3,0.9005514]
[1643782738327,0.6834182,2777.3,2776.4,2.71842224]
[1643782738328,1.08037,2777.1,2776.4,2.71842224]
[1643782738523,2.4842882,2777.3,2776.4,2.71842224]
[1643782738524,0.1799,2777.2,2776.5,0.90033]
[1643782738820,0.1799,2777.2,2776.6,0.25]
[1643782739218,0.89614343,2777.2,2776.6,0.25]
[1643782739417,0.71624343,2777.2,2776.6,0.25]
[1643782739617,1.31624343,2777.2,2776.6,0.25]
[1643782740064,0.23147893,2777.1,2776.7,1.26308521]
[1643782740463,0.23147893,2777.1,2776.8,2.11276957]
[1643782741068,0.23147893,2777.1,2776.9,1.26308521]
[1643782742068,0.23060905,2777.1,2776.8,0.9003076]
[1643782743367,0.23060905,2777.1,2776.9,2.14139198]
[1643782743368,0.53060905,2777.1,2776.9,2.14139198]
[1643782743618,0.3,2777.1,2776.8,0.9003076]
[1643782743818,1.27158796,2777.3,2776.8,0.9003076]
[1643782745619,0.4799,2777.3,2776.9,0.37951052]
[1643782745828,0.3,2777.3,2777.0,0.9002555]
[1643782746023,0.7799,2777.5,2777.0,0.9002555]
[1643782746223,0.3,2777.5,2777.0,0.9002555]
[1643782746526,0.1799,2777.7,2777.0,0.9002555]
[1643782747125,0.69098088,2777.4,2777.0,0.9002555]
[1643782748670,0.99098088,2777.4,2777.0,0.9002555]
[1643782749671,0.3,2777.4,2777.0,0.9002555]
[1643782750072,0.3,2777.5,2777.0,0.9002555]
[1643782750372,0.4799,2777.5,2777.0,0.9002555]
[1643782750580,1.15111026,2777.5,2776.9,3.40680013]
[1643782751219,0.84219795,2777.2,2776.9,3.0486713]
[1643782751619,0.3,2777.2,2776.9,1.8004713]
[1643782751818,0.3,2777.2,2776.9,3.91258326]
[1643782752019,0.4799,2777.5,2776.9,3.91258326]
[1643782752219,0.1799,2777.9,2776.9,3.91258326]
[1643782752822,0.1799,2777.9,2776.9,4.81278326]
[1643782753023,0.1799,2777.9,2777.1,0.9001848]
[1643782753235,1.3603417,2777.6,2777.1,0.9001848]
[1643782753521,1.6603417,2777.6,2777.1,0.9001848]
[1643782754767,1.5603417,2777.6,2777.1,0.9001848]
[1643782754971,1.5103417,2777.6,2777.1,0.9001848]
[1643782755371,1.15448377,2777.6,2777.1,0.9001848]
[1643782758385,1.50646154,2777.6,2777.1,0.9001848]
[1643782762025,1.50646154,2777.6,2777.2,1.23853328]
[1643782762026,0.25374641,2777.5,2777.2,1.23853328]
[1643782766528,2.26143374,2777.5,2777.2,1.23853328]
[1643782766727,2.26143374,2777.5,2776.9,1.9803781]
[1643782766728,0.25374641,2777.4,2776.9,1.9803781]
[1643782767326,0.25374641,2777.4,2776.9,0.1799]
[1643782767327,1.98897198,2777.3,2776.9,0.1799]
[1643782767533,1.15427641,2777.2,2776.8,0.1799]
[1643782767731,2.73017517,2777.1,2776.5,0.1799]
[1643782767941,0.25374641,2777.0,2776.5,0.1799]
[1643782768130,0.25374641,2776.9,2776.6,1.21251188]
[1643782768432,0.25374641,2776.8,2776.6,1.21251188]
[1643782768625,1.1574471,2776.7,2776.5,0.1799]
[1643782768830,0.90370069,2776.7,2776.6,1.21284441]
[1643782769027,1.50370069,2776.7,2776.6,1.21284441]
[1643782769426,1.78540092,2776.7,2776.6,1.21284441]
[1643782770277,1.78540092,2776.7,2776.5,1.21284441]
[1643782770474,1.50370069,2776.7,2776.5,1.21284441]
[1643782770879,0.28194018,2776.6,2776.5,1.21284441]
[1643782771280,0.69885117,2776.6,2776.5,1.21284441]
[1643782772882,0.41691099,2776.6,2776.5,1.21284441]
[1643782773081,1.50370069,2776.7,2776.5,1.21284441]
[1643782773918,0.29835592,2776.6,2776.5,1.21284441]
[1643782774916,0.66321833,2776.6,2776.5,1.21284441]
[1643782777123,0.29835592,2776.6,2776.5,1.21284441]
[1643782778469,0.29692076,2776.6,2776.5,1.21284441]
[1643782782332,1.50370069,2776.7,2776.5,1.21284441]
[1643782782534,1.50370069,2776.7,2776.6,2.21000121]
[1643782782535,0.6,2776.7,2776.6,2.21000121]
[1643782782839,0.3,2776.7,2776.4,0.5474283]
[1643782783034,0.1799,2777.2,2776.5,2.15107872]
[1643782783635,0.77309297,2777.1,2776.5,2.15107872]
[1643782783836,1.37309297,2777.1,2776.5,2.15107872]
[1643782784034,1.37309297,2777.1,2776.6,0.9003224]
[1643782791427,1.81418723,2777.1,2776.6,0.9003224]
[1643782792769,1.81418723,2777.1,2776.7,2.10064988]
[1643782792973,1.37309297,2777.1,2776.7,2.10064988]
[1643782793170,1.37309297,2777.1,2776.6,0.9003224]
[1643782793371,0.6,2777.1,2776.7,2.11049254]
[1643782793670,0.6,2777.1,2776.6,0.9003224]
[1643782793671,0.3,2777.1,2776.6,0.9003224]
[1643782794276,0.1799,2777.2,2776.6,0.9003224]
[1643782794574,1.48534245,2777.1,2776.8,1.35030811]
[1643782795075,1.48534245,2777.1,2776.8,0.44995581]
[1643782795275,2.38571245,2777.1,2776.8,0.44995581]
[1643782795575,2.38571245,2777.1,2776.5,3.91981114]
[1643782795775,2.38571245,2777.1,2776.5,4.09971114]
[1643782797033,2.38571245,2777.1,2776.6,0.3683404]
[1643782797533,2.38571245,2777.1,2776.5,4.09971114]
[1643782798430,0.33588474,2777.0,2776.6,1.16147351]
[1643782798631,2.38571245,2777.1,2776.6,1.16147351]
[1643782798829,0.33587932,2777.0,2776.7,3.00400698]
[1643782799030,0.33587932,2777.0,2776.8,1.16147351]
[1643782800274,0.63587932,2777.0,2776.9,1.16147351]
[1643782800472,0.63587932,2777.0,2776.6,1.16147351]
[1643782800671,0.33454047,2776.9,2776.6,1.08465708]
[1643782804830,0.33454047,2776.9,2776.6,1.98494988]
[1643782805030,0.33454047,2776.9,2776.6,0.9002928]
[1643782806834,0.33454047,2776.9,2776.7,0.90027]
[1643782807035,0.3,2777.0,2776.7,0.90027]
[1643782807274,0.1799,2777.1,2776.7,0.90027]
[1643782807473,0.1799,2777.1,2776.7,1.8005305]
[1643782808977,0.1799,2777.1,2776.7,2.7008005]
[1643782810183,0.1799,2777.1,2776.7,4.79484177]
[1643782810583,0.1799,2777.1,2776.7,2.7008005]
[1643782812745,0.1799,2777.1,2776.7,4.82362279]
[1643782813143,0.1799,2777.1,2776.7,2.7008005]
[1643782815076,0.1799,2777.1,2776.7,0.9002605]
[1643782815678,0.1799,2777.1,2776.7,3.01638278]
[1643782815884,0.1799,2777.1,2776.7,3.31638278]
[1643782815885,0.0001,2777.1,2776.7,3.31638278]
[1643782816085,0.91229392,2778.0,2777.1,0.9001567]
[1643782816086,0.6834182,2778.0,2777.1,0.9001567]
[1643782816286,7.47,2778.1,2777.2,2.43419842]
[1643782816484,0.6834182,2778.5,2777.4,0.25]
[1643782816689,0.6834182,2778.6,2777.4,0.25]
[1643782817183,0.8651427,2778.1,2777.5,0.43380604]
[1643782817384,0.8651427,2778.1,2777.6,0.8999495]
[1643782817993,1.4651427,2778.1,2777.6,0.8999495]
[1643782818186,1.4651427,2778.1,2777.6,3.0180387]
[1643782818387,1.4651427,2778.1,2777.6,0.8999495]
[1643782818388,0.36572819,2777.7,2777.6,0.8999495]
[1643782818624,0.36572819,2777.7,2777.5,1.7998989]
[1643782818821,0.11381775,2777.7,2777.5,1.7998989]
[1643782819023,0.11381775,2777.7,2777.4,0.25]
[1643782820829,0.39998794,2777.6,2777.5,1.09700856]
[1643782821130,0.69998794,2777.6,2777.5,1.09700856]
[1643782823376,0.69998794,2777.6,2777.4,0.25]
[1643782823577,0.39998794,2777.5,2777.4,0.25]
[1643782823776,0.69998794,2777.5,2777.4,1.34750647]
[1643782828440,0.69998794,2777.5,2777.4,1.34629452]
[1643782831990,0.3,2777.5,2777.4,1.34629452]
[1643782832190,0.70125082,2777.5,2777.4,1.34629452]
[1643782832391,0.71381775,2777.7,2777.4,1.34629452]
[1643782832589,0.71381775,2777.7,2777.4,0.24878805]
[1643782832590,0.3,2777.5,2777.4,0.24878805]
[1643782832792,0.71381775,2777.7,2777.4,0.24878805]
[1643782832793,0.71381775,2777.7,2777.4,1.34538249]
[1643782832989,0.40122819,2777.6,2777.5,1.09659444]
[1643782835229,0.71381775,2777.7,2777.5,4.15577025]
[1643782835230,0.3,2777.7,2777.5,4.15577025]
[1643782835433,0.3,2777.7,2777.6,1.09659444]
[1643782838081,0.70832449,2777.7,2777.6,1.09659444]
[1643782838282,0.3,2777.7,2777.6,1.09659444]
[1643782838482,0.70828185,2777.7,2777.6,1.09659444]
[1643782838787,0.3,2777.7,2777.6,1.09659444]
[1643782838982,0.41389125,2777.8,2777.6,1.09659444]
[1643782839182,0.41387358,2777.7,2777.6,1.99660114]
[1643782839382,0.41385432,2777.7,2777.6,1.99660114]
[1643782839683,0.61998573,2777.9,2777.6,1.99660114]
[1643782839884,0.41384122,2777.8,2777.7,1.09659444]
[1643782841136,7.56855,2778.1,2777.7,1.09659444]
[1643782841439,7.56855,2778.1,2777.8,1.09659444]
[1643782841440,0.41649062,2778.0,2777.8,1.09659444]
[1643782841831,0.41649062,2778.0,2777.9,1.09659444]
[1643782846784,7.47,2778.1,2777.9,1.09659444]
[1643782846985,0.42026075,2778.0,2777.9,0.899912]
[1643782847183,0.42026075,2778.0,2777.9,1.97563338]
[1643782850832,0.42026075,2778.0,2777.9,4.03360018]
[1643782851029,0.42026075,2778.0,2777.9,1.97563338]
[1643782853483,4.345,2778.6,2777.9,1.97563338]
[1643782853484,2.42082223,2779.0,2778.1,6.9]
[1643782853696,3.9967383,2779.6,2778.6,0.01228618]
[1643782853697,0.68169072,2778.8,2778.6,0.01228618]
[1643782853886,3.11742133,2779.6,2778.6,0.01228618]
[1643782853887,0.68169072,2779.5,2778.7,7.08067]
[1643782854080,2.20588307,2779.6,2779.4,0.01223141]
[1643782854081,1.2971083,2779.6,2779.4,0.01223141]
[1643782854291,0.5463526,2779.6,2779.5,0.09854]
[1643782854481,0.25,2779.7,2779.6,6.9]
[1643782854482,0.1517564,2779.7,2779.6,6.9]
[1643782854679,1.0978929,2779.9,2779.6,9.86862218]
[1643782854877,1.0978929,2779.9,2779.7,0.09853]
[1643782855083,0.005452,2780.0,2779.7,2.520702]
[1643782855281,0.1,2780.4,2779.9,6.91225545]
[1643782855577,0.1,2780.4,2780.1,0.25664573]
[1643782855779,0.1,2780.4,2780.2,0.09851]
[1643782856055,0.1,2780.4,2780.1,0.25664573]
[1643782856550,0.1,2780.4,2780.1,0.25]
[1643782857152,0.1,2780.4,2779.7,0.1797]
[1643782857351,0.1,2780.4,2779.3,0.1797]
[1643782857546,0.1,2780.4,2779.2,0.4297]
[1643782857951,0.1,2780.4,2779.3,0.38112854]
[1643782857952,0.34450923,2780.0,2779.3,0.38112854]
[1643782858153,0.34450923,2780.0,2779.2,0.4297]
[1643782858154,0.64450923,2780.0,2779.2,0.4297]
[1643782858353,0.3,2780.0,2779.2,2.2286274]
[1643782858748,1.588,2780.4,2779.2,2.2286274]
[1643782859553,0.44976751,2779.8,2779.2,2.2286274]
[1643782859783,0.3,2779.8,2779.2,2.2286274]
[1643782860186,0.523,2780.3,2779.2,2.2286274]
[1643782860388,2.523,2780.3,2779.2,0.25]
[1643782860585,1.823,2780.3,2779.2,0.25]
[1643782860786,0.76209315,2779.7,2779.2,0.25]
[1643782861200,1.06209315,2779.7,2779.2,0.25]
[1643782862488,0.3,2779.7,2779.2,0.25]
[1643782862689,0.3,2779.8,2779.2,0.25]
[1643782862889,1.19966,2780.0,2779.2,0.25]
[1643782863552,1.34720506,2779.8,2779.2,0.25]
[1643782863749,0.89966,2780.0,2779.2,0.25]
[1643782863953,0.523,2780.3,2779.2,0.25]
[1643782864760,1.7153758,2780.3,2779.2,0.25]
[1643782864952,1.7153758,2780.3,2779.6,0.36074115]
[1643782865156,0.3,2780.3,2779.6,0.36074115]
[1643782865554,1.288,2780.4,2779.6,0.36074115]
[1643782865555,1.588,2780.4,2779.6,0.36074115]
[1643782866158,2.31328636,2780.4,2779.6,0.36074115]
[1643782866558,2.31328636,2780.4,2779.7,0.1797]
[1643782866759,0.4,2780.4,2779.7,0.1797]
[1643782866962,0.1,2780.4,2779.7,0.4297]
[1643782867687,1.03614005,2780.4,2780.1,0.3734013]
[1643782867888,1.33614005,2780.4,2779.7,0.1797]
[1643782868293,2.06094916,2780.3,2779.7,0.1797]
[1643782868692,2.06094916,2780.3,2779.5,1.1456]
[1643782868693,1.33614005,2780.4,2779.6,0.1797]
[1643782868892,2.03095131,2780.3,2779.6,0.4297]
[1643782869191,1.99688884,2780.3,2779.6,0.4297]
[1643782869395,1.33614005,2780.4,2779.6,0.4297]
[1643782869593,0.35355401,2780.2,2779.6,0.4297]
[1643782869792,0.65355401,2780.2,2779.6,0.4297]
[1643782871950,1.33614005,2780.4,2779.6,0.4297]
[1643782873058,0.33813267,2780.3,2779.6,0.4297]
[1643782873357,1.33614005,2780.4,2779.6,0.4297]
[1643782874152,1.63614005,2780.4,2779.6,0.4297]
[1643782874354,0.33037888,2780.3,2779.6,0.4297]
[1643782875393,0.1,2780.4,2779.6,0.44268976]
[1643782875597,0.1,2780.4,2779.7,3.65354234]
[1643782875891,0.1,2780.4,2780.3,6.91234157]
[1643782876094,0.00453243,2781.2,2780.4,6.9]
[1643782876296,0.00453243,2781.2,2780.5,3.55652612]
[1643782876493,0.00453243,2781.2,2780.6,0.39572549]
[1643782876793,1.2078,2781.9,2780.8,8.59751]
[1643782876794,1.16233243,2781.9,2780.8,8.59751]
[1643782877095,0.25990359,2781.8,2781.1,0.25]
[1643782877293,5.8998,2782.3,2781.1,0.25]
[1643782877493,1.28856741,2781.6,2781.1,0.25]
[1643782877701,1.23856741,2781.6,2781.1,0.25]
[1643782877895,1.23856741,2781.6,2780.4,4.4428881]
[1643782877896,0.25980989,2781.5,2780.5,0.1797]
[1643782878094,0.25980989,2781.5,2780.5,0.4297]
[1643782878541,0.25980989,2781.5,2780.6,0.35372233]
[1643782878739,0.73349166,2781.1,2780.6,0.35372233]
[1643782879040,1.41947514,2781.1,2780.7,0.1797]
[1643782879248,1.71947514,2781.1,2780.7,0.1797]
[1643782879840,1.1315,2781.8,2780.7,0.1797]
[1643782880039,0.26186486,2781.7,2780.7,0.1797]
[1643782880845,0.26186486,2781.7,2780.7,1.0786994]
[1643782881049,0.81471203,2781.3,2780.7,1.0786994]
[1643782881250,1.41471203,2781.3,2780.7,1.0786994]
[1643782881448,0.3,2781.3,2780.7,1.0786994]
[1643782881749,1.1315,2781.8,2780.8,2.12682612]
[1643782881946,1.1315,2781.8,2781.0,0.898847]
[1643782882145,1.1315,2781.8,2781.5,0.445401]
[1643782882393,0.00355889,2782.5,2781.5,0.445401]
[1643782882595,0.700719,2781.9,2781.2,2.6965634]
[1643782882798,0.700719,2781.9,2781.2,1.7977234]
[1643782882799,0.26010603,2781.8,2781.2,1.7977234]
[1643782882993,0.26010603,2781.8,2780.9,0.1797]
[1643782883192,0.700719,2781.9,2780.9,0.1797]
[1643782883392,0.26005788,2781.8,2780.9,0.1797]
[1643782883592,0.90075117,2781.3,2781.0,0.38913133]
[1643782883792,1.20075117,2781.3,2781.0,0.38913133]
[1643782883992,1.20075117,2781.3,2781.0,1.28817593]
[1643782884195,0.6,2781.3,2781.0,1.28817593]
[1643782884392,0.39069755,2781.6,2781.0,1.28817593]
[1643782884393,0.69069755,2781.6,2781.0,1.28817593]
[1643782884595,0.3,2781.6,2781.0,1.28817593]
[1643782884795,1.0,2782.2,2781.0,1.28817593]
[1643782884997,1.0,2782.2,2781.0,0.38913133]
[1643782884998,0.523,2782.0,2781.0,0.38913133]
[1643782885195,0.89209018,2781.6,2781.0,0.38913133]
[1643782885595,1.49209018,2781.6,2780.9,0.1797]
[1643782885798,0.6,2781.6,2780.9,0.1797]
[1643782886045,0.3,2781.6,2780.9,0.1797]
[1643782886249,0.523,2782.0,2780.9,0.1797]
[1643782886449,0.26213531,2781.9,2780.9,0.1797]
[1643782886650,0.32555888,2781.5,2780.9,0.1797]
[1643782886851,0.78237956,2781.3,2780.9,0.1797]
[1643782887052,2.0,2782.1,2780.9,0.1797]
[1643782887053,8.15087618,2782.5,2781.2,0.01249263]
[1643782887257,0.26205016,2782.4,2781.2,0.01249263]
[1643782887452,0.26205016,2782.3,2781.3,0.25]
[1643782887655,0.00355889,2782.5,2781.3,0.25]
[1643782887656,0.26205016,2782.2,2781.3,0.25]
[1643782887960,7.47,2782.4,2781.3,0.16242127]
[1643782887961,0.77306082,2781.5,2781.3,0.16242127]
[1643782888155,0.77306082,2781.5,2781.1,0.1797]
[1643782888354,1.37306082,2781.5,2781.0,0.1797]
[1643782888555,1.37306082,2781.5,2780.8,0.1797]
[1643782889553,1.37306082,2781.5,2780.9,0.44653935]
[1643782889787,1.37306082,2781.5,2780.8,0.1797]
[1643782890993,1.37306082,2781.5,2781.0,0.3490149]
[1643782892198,0.3,2781.5,2781.0,0.3490149]
[1643782892399,0.3,2781.7,2781.0,0.3490149]
[1643782892598,1.2287,2781.9,2781.1,0.1797]
[1643782892806,0.00355889,2782.5,2781.1,2.30652612]
[1643782893001,0.00355889,2782.5,2781.3,0.25]
[1643782893210,0.00355889,2782.5,2781.7,0.33859526]
[1643782893400,0.00355889,2782.5,2781.8,0.1797]
[1643782893643,0.00355889,2782.5,2781.9,0.25]
[1643782894042,0.00355889,2782.5,2782.0,2.12682612]
[1643782894245,0.00355889,2782.5,2782.1,1.6011041]
[1643782894443,0.00355889,2782.5,2782.2,0.33928356]
[1643782896446,0.00355889,2782.5,2782.3,0.1797]
[1643782898697,0.80276671,2782.5,2782.2,0.33928356]
[1643782898899,0.29035364,2782.4,2782.0,1.3412]
[1643782899099,0.29035364,2782.3,2781.9,0.25]
[1643782899297,1.40276671,2782.5,2781.9,0.25]
[1643782899298,0.29035364,2782.2,2781.9,0.25]
[1643782899499,1.40276671,2782.5,2781.9,0.25]
[1643782899697,0.28035356,2782.4,2781.9,0.25]
[1643782899897,0.44300779,2782.3,2781.9,0.25]
[1643782900098,0.28035356,2782.2,2781.9,0.25]
[1643782900498,0.28035356,2782.2,2781.6,0.1797]
[1643782900900,1.08422846,2781.7,2781.6,0.1797]
[1643782901160,1.02801081,2781.7,2781.6,0.1797]
[1643782901750,1.32801081,2781.7,2781.6,0.1797]
[1643782901952,0.6,2781.7,2781.6,0.1797]
[1643782902151,2.2253,2782.2,2781.6,0.1797]
[1643782902353,0.28800038,2782.1,2781.6,0.1797]
[1643782902553,0.28800038,2782.1,2781.4,0.8987367]
[1643782902957,0.3,2782.2,2781.5,2.12682612]
[1643782903161,0.00355889,2782.5,2781.5,4.28443262]
[1643782903356,0.00355889,2782.5,2782.2,0.36219176]
[1643782903554,0.00355889,2782.5,2781.7,8.0559]
[1643782903757,0.00355889,2782.5,2781.7,8.9544534]
[1643782903955,0.00355889,2782.5,2781.8,1.0]
[1643782904154,0.00355889,2782.5,2781.9,0.1797]
[1643782904353,0.00355889,2782.5,2781.8,0.1797]
[1643782904556,0.39493617,2782.2,2781.8,0.1797]
[1643782904787,0.67069517,2782.3,2781.8,0.1797]
[1643782904988,0.28835174,2782.2,2781.8,0.1797]
[1643782906402,0.28835174,2782.2,2781.6,1.8035201]
[1643782908201,0.28835174,2782.2,2781.6,1.4065]
[1643782908399,0.28835174,2782.2,2781.6,0.1797]
[1643782908672,0.28835174,2782.2,2781.4,0.4297]
[1643782910572,0.28835174,2782.2,2781.7,0.39727877]
[1643782913102,0.63373044,2782.2,2781.4,0.25]
[1643782913301,0.28835174,2782.1,2781.4,0.25]
[1643782913502,0.28835174,2782.0,2781.4,0.25]
[1643782913702,0.28835174,2781.9,2781.4,0.25]
[1643782913904,0.28835174,2781.8,2781.4,0.25]
[1643782914103,0.3,2782.2,2781.4,0.25]
[1643782914310,0.27906102,2782.1,2781.8,0.3840538]
[1643782914502,0.27906102,2782.0,2781.8,0.3840538]
[1643782914703,0.27906102,2781.9,2781.8,0.3840538]
[1643782915108,0.27906102,2782.1,2781.4,0.25]
[1643782915306,0.27906102,2782.0,2781.4,0.25]
[1643782915506,0.27906102,2781.9,2781.4,0.25]
[1643782915707,0.27906102,2781.8,2781.4,0.25]
[1643782915908,0.70001997,2782.3,2781.4,0.25]
[1643782916146,0.27897973,2782.2,2781.7,0.38758179]
[1643782919654,0.27897973,2782.2,2781.4,0.25]
[1643782919914,0.27897973,2782.2,2781.3,4.0602]
[1643782919915,0.67731729,2782.1,2781.3,0.1797]
[1643782920112,0.67731729,2781.9,2781.3,0.1797]
[1643782920312,0.67731729,2781.8,2781.3,0.1797]
[1643782920514,1.47929702,2781.8,2781.3,0.1797]
[1643782920715,1.03226224,2781.7,2781.3,0.1797]
[1643782920912,0.68287025,2781.6,2781.3,0.1797]
[1643782921113,0.27897973,2781.5,2781.3,0.1797]
[1643782921417,7.423,2781.4,2781.3,0.1797]
[1643782921613,8.97929702,2781.4,2781.3,0.1797]
[1643782921813,8.97929702,2781.4,2780.3,0.54760662]
[1643782921814,9.97929702,2781.4,2780.3,0.54760662]
[1643782922024,6.75629702,2781.3,2780.4,1.21024168]
[1643782922218,1.40197973,2781.2,2780.4,1.21024168]
[1643782922418,0.3970226,2780.9,2780.4,1.21024168]
[1643782922613,0.27897973,2780.8,2780.4,1.21024168]
[1643782924445,0.27897973,2780.8,2780.2,0.25]
[1643782924651,0.39677345,2780.7,2780.3,1.20561472]
[1643782924846,0.27897973,2780.6,2780.3,1.20561472]
[1643782925045,0.27897973,2780.5,2780.3,1.20561472]
[1643782925246,0.4797,2780.8,2780.1,0.1797]
[1643782925446,0.30535583,2780.7,2780.2,1.18525349]
[1643782925646,0.60535583,2780.7,2780.2,1.18525349]
[1643782925847,0.30535583,2780.6,2780.2,1.18525349]
[1643782926455,0.32094912,2780.5,2780.2,1.18525349]
[1643782926655,0.62094912,2780.5,2780.2,1.18525349]
[1643782926859,0.62094912,2780.5,2780.1,0.1797]
[1643782926860,0.84364327,2780.4,2780.1,0.1797]
[1643782927054,0.50034327,2780.3,2780.1,0.1797]
[1643782927308,4.72064327,2780.2,2780.1,0.1797]
[1643782927701,5.88340477,2780.2,2780.1,0.1797]
[1643782928311,1.48340477,2780.2,2780.1,0.1797]
[1643782928504,1.48340477,2780.2,2780.1,0.10344994]
[1643782929509,3.75189525,2780.2,2780.1,0.10344994]
[1643782929709,5.45459525,2780.2,2780.1,0.10344994]
[1643782929914,5.45459525,2780.2,2779.4,0.25]
[1643782930112,1.50034327,2780.1,2779.5,1.15918912]
[1643782930310,2.15997351,2780.0,2779.5,1.15918912]
[1643782930508,2.15997351,2780.0,2778.8,1.1898]
[1643782930509,0.49865447,2779.9,2778.9,0.37787225]
[1643782930708,0.49865447,2779.9,2779.0,1.15863366]
[1643782930709,2.01281929,2779.8,2779.0,1.15863366]
[1643782930909,1.98801174,2779.8,2779.0,1.15863366]
[1643782931151,0.91895447,2779.9,2779.0,1.15863366]
[1643782931351,0.61895447,2779.9,2779.0,1.15863366]
[1643782931554,0.61895447,2779.9,2779.1,0.01201052]
[1643782931754,0.61895447,2779.9,2779.2,1.15863366]
[1643782932151,0.61895447,2779.9,2779.0,1.15863366]
[1643782932351,0.79865447,2779.9,2779.1,1.15863366]
[1643782932558,0.79865447,2779.9,2779.3,0.25]
[1643782932753,0.79865447,2779.9,2779.4,1.15863366]
[1643782932958,2.85392287,2779.9,2779.0,0.1798]
[1643782933161,2.85392287,2779.9,2779.1,1.15457875]
[1643782933162,0.523,2779.8,2779.1,1.15457875]
[1643782933357,0.523,2779.8,2779.2,1.40457875]
[1643782933358,0.823,2779.8,2779.2,1.40457875]
[1643782933555,0.823,2779.8,2779.3,1.15457875]
[1643782933752,0.823,2779.8,2779.3,0.34385707]
[1643782933953,0.823,2779.8,2779.2,0.25]
[1643782934152,0.823,2779.8,2779.3,1.13141601]
[1643782934796,2.28622322,2779.8,2779.3,1.13141601]
[1643782934998,0.3,2779.8,2779.3,1.13141601]
[1643782935203,2.09865447,2779.9,2779.3,1.13141601]
[1643782935797,1.09865447,2779.9,2779.3,1.13141601]
[1643782936001,2.09865447,2779.9,2779.3,1.13141601]
[1643782936203,1.09865447,2779.9,2779.3,1.13141601]
[1643782936403,1.09865447,2779.9,2779.2,0.25]
[1643782936807,1.09865447,2779.9,2779.3,1.10129627]
[1643782937005,0.91895447,2779.9,2779.3,1.10129627]
[1643782937207,0.61895447,2779.9,2779.3,1.10129627]
[1643782937405,0.3,2779.9,2779.3,1.10129627]
[1643782937813,0.7797,2780.0,2779.3,1.10129627]
[1643782938007,0.7797,2780.0,2779.4,0.1797]
[1643782938008,0.3,2780.0,2779.4,0.1797]
[1643782938206,0.1797,2780.4,2779.5,1.10129627]
[1643782938207,1.4797,2780.4,2779.5,1.10129627]
[1643782938408,1.14549007,2780.3,2779.7,0.32957729]
[1643782938849,1.74549007,2780.3,2779.7,0.32957729]
[1643782939152,1.74549007,2780.3,2779.4,0.8994051]
[1643782939153,1.41801536,2780.3,2779.4,0.8994051]
[1643782939350,1.41801536,2780.3,2779.3,3.4082]
[1643782939351,0.1797,2780.2,2779.3,3.4082]
[1643782940150,0.1797,2780.2,2779.3,0.1797]
[1643782940649,0.72979286,2780.0,2779.4,0.34263704]
[1643782941655,0.79674331,2779.8,2779.3,0.1797]
[1643782942155,1.39674331,2779.8,2779.3,0.1797]
[1643782942398,1.39674331,2779.8,2779.2,0.25]
[1643782942601,0.6,2779.8,2779.2,0.25]
[1643782942803,1.4797,2779.9,2779.3,0.43299168]
[1643782943598,0.88528864,2779.8,2779.3,0.43299168]
[1643782943798,1.18528864,2779.8,2779.3,0.43299168]
[1643782944400,3.18796868,2779.8,2779.2,0.25]
[1643782945798,0.1797,2779.9,2779.2,0.25]
[1643782947155,0.6,2780.0,2779.3,1.02928049]
[1643782947356,1.1752,2780.2,2779.3,1.02928049]
[1643782947357,1.7752,2780.2,2779.3,1.02928049]
[1643782947558,2.30129356,2780.4,2779.3,1.20995049]
[1643782947559,0.1797,2780.4,2779.3,1.20995049]
[1643782947756,3.1962,2781.1,2779.4,1.02928049]
[1643782947757,2.30129356,2781.0,2779.4,1.02928049]
[1643782947960,0.40250465,2780.8,2780.2,0.34763273]
[1643782948163,0.1797,2780.7,2780.2,0.34763273]
[1643782948360,0.78718956,2780.5,2780.2,0.25]
[1643782948554,0.78718956,2780.5,2779.6,3.7105]
[1643782948757,0.1797,2780.4,2779.6,3.7105]
[1643782949155,2.23365778,2780.4,2779.6,3.7105]
[1643782949468,2.55437966,2780.4,2780.0,0.35303731]
[1643782949898,2.85437966,2780.4,2780.0,0.35303731]
[1643782950498,0.7797,2780.4,2780.0,0.35303731]
[1643782951003,0.4797,2780.4,2780.0,0.35303731]
[1643782951203,0.1797,2780.4,2780.0,0.35303731]
[1643782951703,0.1797,2780.4,2779.6,3.7105]
[1643782952902,0.1797,2780.4,2779.7,0.39510675]
[1643782953103,0.32630546,2780.3,2779.7,0.39510675]
[1643782953311,0.62630546,2780.3,2779.7,0.39510675]
[1643782955150,0.3,2780.3,2779.7,0.39510675]
[1643782955350,0.7797,2780.4,2779.7,0.39510675]
[1643782955557,0.4797,2780.4,2779.5,0.25]
[1643782956159,0.1797,2780.4,2779.5,0.25]
[1643782956557,0.53420979,2780.4,2779.8,0.39909074]
[1643782956761,0.85217296,2781.2,2779.9,9.01300708]
[1643782956964,0.67731729,2781.6,2780.3,0.01238322]
[1643782957159,1.88851729,2781.7,2780.4,0.25]
[1643782957815,0.86600233,2781.3,2780.4,0.25]